bitfinex/quotes_BTCUSD_20250406
["timestamp","ask_amount","ask_price","bid_price","bid_amount"]
[1743976103415,6.5e-07,79153.0,79152.0,0.429533]
[1743976103636,6.5e-07,79153.0,79152.0,0.60601732]
[1743976104259,2.5e-07,79162.0,79161.0,0.49027285]
[1743976104463,2.5e-07,79162.0,79161.0,0.85054063]
[1743976104870,0.00023208,79168.0,79167.0,0.064531]
[1743976105088,0.0003352,79174.0,79167.0,0.83491131]
[1743976105287,9.2e-07,79174.0,79173.0,0.01954085]
[1743976105460,9.2e-07,79174.0,79173.0,0.57330975]
[1743976105687,9.2e-07,79174.0,79173.0,0.57204431]
[1743976105911,9.2e-07,79174.0,79173.0,0.82465531]
[1743976106678,9.2e-07,79174.0,79173.0,0.87155531]
[1743976106909,9.2e-07,79174.0,79173.0,0.87655531]
[1743976107563,2e-07,79186.0,79185.0,0.37216885]
[1743976107780,2e-07,79186.0,79185.0,1.82415663]
[1743976108662,2e-07,79186.0,79185.0,1.90135663]
[1743976108875,2e-07,79186.0,79185.0,1.91089208]
[1743976109121,2e-07,79186.0,79185.0,1.90489208]
[1743976109332,2e-07,79186.0,79185.0,1.91089208]
[1743976109561,2e-07,79186.0,79185.0,1.90989208]
[1743976110018,2e-07,79186.0,79185.0,1.90489208]
[1743976110861,0.002,79199.0,79185.0,1.90489208]
[1743976110862,0.002,79199.0,79198.0,0.605157]
[1743976111245,0.00213622,79199.0,79198.0,0.85189791]
[1743976111691,0.00213622,79199.0,79198.0,0.81310513]
[1743976111914,0.00213622,79199.0,79198.0,0.85186268]
[1743976112382,2.2e-07,79199.0,79198.0,0.85686268]
[1743976112605,2.2e-07,79199.0,79198.0,0.88186268]
[1743976112842,2.2e-07,79199.0,79198.0,0.88786268]
[1743976113288,2.2e-07,79199.0,79198.0,0.93256268]
[1743976113780,0.0001674,79206.0,79205.0,0.61967485]
[1743976113984,0.0001674,79206.0,79205.0,0.95425537]
[1743976114257,0.0003348,79218.0,79217.0,0.265094]
[1743976114484,0.0003348,79218.0,79217.0,1.51918213]
[1743976115135,0.0003348,79218.0,79217.0,1.69210213]
[1743976115355,0.0484348,79218.0,79217.0,1.51918213]
[1743976115617,0.0484348,79218.0,79217.0,1.69210213]
[1743976116055,0.06149521,79218.0,79217.0,1.69710213]
[1743976116260,0.0484348,79218.0,79217.0,1.69710213]
[1743976116621,0.0484348,79218.0,79217.0,1.69910213]
[1743976117407,0.0003348,79218.0,79217.0,1.69910213]
[1743976118938,0.002,79229.0,79228.0,0.012621]
[1743976119162,0.01565962,79229.0,79228.0,0.40250082]
[1743976119598,0.00245397,79229.0,79228.0,0.40250082]
[1743976121149,0.00245397,79229.0,79228.0,0.40450082]
[1743976122026,0.00245397,79229.0,79228.0,0.40250082]
[1743976122259,0.00245397,79229.0,79228.0,0.74750082]
[1743976122481,0.00245397,79229.0,79228.0,0.74950082]
[1743976122892,9.7e-07,79229.0,79228.0,0.74950082]
[1743976123101,7.7e-07,79231.0,79230.0,0.64959085]
[1743976123248,0.0487,79258.0,79230.0,0.64959085]
[1743976123249,0.002,79259.0,79230.0,0.77249382]
[1743976123454,0.002,79259.0,79253.0,0.38787597]
[1743976123662,0.002,79259.0,79253.0,0.60038113]
[1743976126616,0.002,79259.0,79253.0,0.60138113]
[1743976126813,0.002,79259.0,79253.0,0.61387824]
[1743976127536,0.002,79259.0,79253.0,0.61687824]
[1743976127776,0.002,79259.0,79253.0,0.60138113]
[1743976127966,0.002,79259.0,79253.0,0.60638113]
[1743976128178,0.002,79259.0,79253.0,0.60038113]
[1743976128663,0.002,79259.0,79253.0,0.60838113]
[1743976128858,0.002,79259.0,79253.0,0.60338113]
[1743976129063,0.002,79259.0,79253.0,0.60438113]
[1743976129338,0.002,79259.0,79258.0,0.264957]
[1743976129571,0.00213608,79259.0,79258.0,0.40240082]
[1743976129973,0.09923608,79259.0,79258.0,0.38785997]
[1743976130179,0.26497,79254.0,79253.0,0.004]
[1743976130535,0.26498,79251.0,79250.0,1.10566085]
[1743976130749,0.26498,79251.0,79250.0,1.21402297]
[1743976131153,0.01320565,79251.0,79250.0,1.21402297]
[1743976131297,0.27818565,79251.0,79250.0,1.21402297]
[1743976131499,0.012619,79244.0,79239.0,0.01262]
[1743976131718,0.0467,79243.0,79240.0,0.12290297]
[1743976131921,0.01320565,79242.0,79240.0,0.12290297]
[1743976132133,0.26559765,79242.0,79240.0,0.12290297]
[1743976132521,0.01320565,79242.0,79241.0,0.01454085]
[1743976132738,0.01320565,79242.0,79241.0,0.15006282]
[1743976133916,0.01320565,79242.0,79241.0,0.13744382]
[1743976134307,0.01320565,79242.0,79241.0,0.15006282]
[1743976134529,0.311688,79249.0,79243.0,0.01454085]
[1743976134733,0.01338329,79248.0,79245.0,0.01454085]
[1743976134909,0.01338329,79248.0,79247.0,0.01454085]
[1743976135110,0.01304693,79248.0,79247.0,0.13744382]
[1743976135536,0.01304693,79248.0,79247.0,0.15006182]
[1743976135693,0.0488,79257.0,79254.0,0.01454085]
[1743976136076,0.01332723,79256.0,79255.0,0.13744382]
[1743976136482,0.0488,79257.0,79256.0,0.01454085]
[1743976136719,0.0488,79257.0,79256.0,0.40240682]
[1743976136915,0.0488,79257.0,79256.0,0.13744382]
[1743976137163,0.252365,79251.0,79246.0,0.01454085]
[1743976137366,0.252365,79251.0,79248.0,0.01454085]
[1743976137569,0.012618,79249.0,79248.0,0.01454085]
[1743976137771,0.012618,79249.0,79248.0,0.13744382]
[1743976139018,0.012618,79249.0,79248.0,0.13844382]
[1743976139219,0.264986,79250.0,79248.0,0.13844382]
[1743976139220,0.26497,79255.0,79248.0,0.15106182]
[1743976139415,0.26497,79255.0,79250.0,0.01454085]
[1743976139620,0.264957,79258.0,79252.0,0.01454085]
[1743976139831,0.2651135,79261.0,79256.0,0.02715785]
[1743976140035,0.2651135,79261.0,79257.0,0.01454085]
[1743976140276,0.2651135,79261.0,79256.0,0.13551997]
[1743976140277,0.0001675,79261.0,79258.0,0.38978382]
[1743976140458,0.0001675,79261.0,79258.0,0.40240082]
[1743976140694,0.00213608,79259.0,79258.0,0.40240082]
[1743976141555,0.00213608,79259.0,79258.0,0.13744382]
[1743976141760,0.01475208,79259.0,79258.0,0.13744382]
[1743976142609,0.264957,79258.0,79257.0,0.01554085]
[1743976143260,0.264957,79258.0,79257.0,0.01454085]
[1743976143441,0.264957,79258.0,79257.0,0.03945229]
[1743976143641,0.01475208,79259.0,79257.0,0.03899282]
[1743976143816,0.264963,79256.0,79255.0,0.03899282]
[1743976144018,0.264963,79256.0,79255.0,0.1618962]
[1743976145441,0.264963,79256.0,79255.0,0.17643705]
[1743976145649,0.264957,79258.0,79255.0,0.17643705]
[1743976145847,0.00315439,79257.0,79256.0,0.1618962]
[1743976146055,0.012617,79257.0,79256.0,0.1618962]
[1743976149246,0.264957,79258.0,79256.0,0.1618962]
[1743976149608,0.264957,79258.0,79257.0,0.03899339]
[1743976150044,0.00213608,79259.0,79257.0,0.03899339]
[1743976150449,0.00213608,79259.0,79253.0,0.264971]
[1743976150625,0.00315441,79258.0,79256.0,0.264961]
[1743976150823,0.01653673,79258.0,79257.0,0.03900215]
[1743976151466,0.01653673,79258.0,79256.0,0.12290297]
[1743976151677,0.01653673,79258.0,79257.0,0.0390193]
[1743976156194,0.02915373,79258.0,79257.0,0.0390193]
[1743976156768,0.01653673,79258.0,79257.0,0.0390193]
[1743976157358,0.26887873,79258.0,79257.0,0.0390193]
[1743976157488,0.27834132,79258.0,79255.0,0.0390193]
[1743976157696,0.252346,79257.0,79255.0,0.0390193]
[1743976157902,0.0031545,79256.0,79252.0,0.012617]
[1743976158103,0.01338232,79255.0,79253.0,0.16198569]
[1743976158320,0.01338232,79255.0,79254.0,0.03908272]
[1743976158523,0.00315448,79255.0,79254.0,0.03908272]
[1743976158729,0.01338232,79255.0,79254.0,0.03908272]
[1743976158926,0.00315448,79257.0,79254.0,0.03908272]
[1743976159150,0.01338583,79256.0,79254.0,0.03908272]
[1743976159300,0.00315448,79255.0,79254.0,0.03908272]
[1743976159501,0.00315448,79255.0,79253.0,0.12290297]
[1743976159502,0.01577148,79255.0,79253.0,0.12290297]
[1743976159705,0.27835583,79254.0,79253.0,0.12290297]
[1743976160786,0.252378,79246.0,79245.0,0.00029274]
[1743976160962,0.252378,79246.0,79245.0,0.16227582]
[1743976161366,0.26576383,79246.0,79245.0,0.16227582]
[1743976162058,0.26576383,79246.0,79245.0,0.12319571]
[1743976162458,0.26676383,79246.0,79245.0,0.12319571]
[1743976162757,0.01438583,79246.0,79245.0,0.12319571]
[1743976163172,0.001,79246.0,79245.0,0.12319571]
[1743976163797,0.001,79246.0,79245.0,0.00129274]
[1743976163912,0.013618,79246.0,79245.0,0.00029274]
[1743976164120,0.0301589,79246.0,79245.0,0.00029274]
[1743976164373,0.0291589,79246.0,79245.0,0.00129274]
[1743976164580,0.0301589,79246.0,79245.0,0.00129274]
[1743976165551,0.58956187,79246.0,79245.0,0.00129274]
[1743976165749,0.265094,79217.0,79216.0,0.0003344]
[1743976166195,0.27847983,79217.0,79216.0,0.0003344]
[1743976166779,0.27847983,79217.0,79216.0,0.0063344]
[1743976167147,0.27847983,79217.0,79216.0,0.00078837]
[1743976167572,0.27847983,79217.0,79216.0,0.00478837]
[1743976167744,0.27847983,79217.0,79216.0,0.00878837]
[1743976167949,0.30088412,79217.0,79216.0,0.00878837]
[1743976168131,0.30088412,79217.0,79216.0,0.00478837]
[1743976168679,0.30088412,79217.0,79216.0,0.00078837]
[1743976169031,0.44443953,79217.0,79216.0,0.00078837]
[1743976169421,0.9073425,79217.0,79216.0,0.00078837]
[1743976169619,0.81458709,79217.0,79216.0,0.00078837]
[1743976170363,0.81258709,79217.0,79216.0,0.00078837]
[1743976170901,0.81658709,79217.0,79216.0,0.00078837]
[1743976171098,0.81458709,79217.0,79216.0,0.00078837]
[1743976171447,0.81858709,79217.0,79216.0,0.00078837]
[1743976172007,0.81458709,79217.0,79216.0,0.00078837]
[1743976172163,0.81858709,79217.0,79216.0,0.00078837]
[1743976172386,0.81658709,79217.0,79216.0,0.00078837]
[1743976172813,0.81958709,79217.0,79216.0,0.00078837]
[1743976173018,0.81658709,79217.0,79216.0,0.00078837]
[1743976173534,0.81558709,79217.0,79216.0,0.00078837]
[1743976173941,0.81958709,79217.0,79216.0,0.00078837]
[1743976174315,0.81258709,79217.0,79216.0,0.00078837]
[1743976174730,0.81658709,79217.0,79216.0,0.00078837]
[1743976175209,0.68968412,79217.0,79216.0,0.00078837]
[1743976175417,0.64088412,79217.0,79216.0,0.00078837]
[1743976175621,0.29821637,79217.0,79216.0,0.00078837]
[1743976175821,0.29521637,79217.0,79216.0,0.00078837]
[1743976176119,0.02038583,79217.0,79216.0,0.00078837]
[1743976176674,0.01638583,79217.0,79216.0,0.40332919]
[1743976176904,0.006,79217.0,79216.0,0.40332919]
[1743976177148,0.004,79217.0,79216.0,0.40332919]
[1743976177420,0.004,79217.0,79216.0,0.13823219]
[1743976177629,0.003,79217.0,79216.0,0.13823219]
[1743976177841,0.02008384,79217.0,79216.0,0.13823219]
[1743976178261,0.01608384,79217.0,79216.0,0.13823219]
[1743976178638,0.01908384,79217.0,79216.0,0.13823219]
[1743976178887,0.01608384,79217.0,79216.0,0.13823219]
[1743976179063,0.02870684,79217.0,79216.0,0.13823219]
[1743976179389,0.02870684,79217.0,79216.0,0.00078837]
[1743976179704,0.03186281,79217.0,79216.0,0.00178837]
[1743976179876,0.02886281,79217.0,79216.0,0.00178837]
[1743976180073,0.02886281,79217.0,79216.0,0.00078837]
[1743976180280,0.02986281,79217.0,79216.0,0.00078837]
[1743976180799,0.02886281,79217.0,79216.0,0.00078837]
[1743976181096,0.03086281,79217.0,79216.0,0.00078837]
[1743976181506,0.02886281,79217.0,79216.0,0.00078837]
[1743976181835,0.03086281,79217.0,79216.0,0.00078837]
[1743976183288,0.02886281,79217.0,79216.0,0.00078837]
[1743976183722,0.03086281,79217.0,79216.0,0.00078837]
[1743976186940,0.03186281,79217.0,79216.0,0.00078837]
[1743976187075,0.02986281,79217.0,79216.0,0.00078837]
[1743976187280,0.03286281,79217.0,79216.0,0.00078837]
[1743976191591,0.02986281,79217.0,79216.0,0.00078837]
[1743976191774,0.02886281,79217.0,79216.0,0.00078837]
[1743976191975,0.03186281,79217.0,79216.0,0.00078837]
[1743976193279,0.02886281,79217.0,79216.0,0.00078837]
[1743976193641,0.03186281,79217.0,79216.0,0.00078837]
[1743976194023,0.02986281,79217.0,79216.0,0.00078837]
[1743976194405,0.03186281,79217.0,79216.0,0.00078837]
[1743976195251,0.01923981,79217.0,79216.0,0.00078837]
[1743976195622,0.03186281,79217.0,79216.0,0.00078837]
[1743976197767,0.02986281,79217.0,79216.0,0.00078837]
[1743976198176,0.03286281,79217.0,79216.0,0.00078837]
[1743976198736,0.03186281,79217.0,79216.0,0.00078837]
[1743976199056,0.03286281,79217.0,79216.0,0.00078837]
[1743976199718,0.02886281,79217.0,79216.0,0.00078837]
[1743976199869,0.03186281,79217.0,79216.0,0.00078837]
[1743976200090,0.03286281,79217.0,79216.0,0.00078837]
[1743976200531,0.03286281,79217.0,79216.0,0.02434131]
[1743976200732,0.02970684,79217.0,79216.0,0.02434131]
[1743976200906,0.02670684,79217.0,79216.0,0.02434131]
[1743976201107,0.01408384,79217.0,79216.0,0.16178513]
[1743976201314,0.01708384,79217.0,79216.0,0.17440813]
[1743976201511,0.01708384,79217.0,79216.0,0.26301239]
[1743976201786,0.003,79217.0,79216.0,0.26174811]
[1743976202160,0.004,79217.0,79216.0,0.26174811]
[1743976202561,0.001,79217.0,79216.0,0.26174811]
[1743976202767,0.001,79217.0,79216.0,0.26274811]
[1743976202969,0.003,79217.0,79216.0,0.26174811]
[1743976203336,0.265037,79234.0,79227.0,0.012621]
[1743976203533,0.01303197,79233.0,79231.0,0.02716185]
[1743976203916,0.01262,79238.0,79232.0,0.13744382]
[1743976204095,0.252395,79241.0,79233.0,0.26695985]
[1743976204393,0.252395,79241.0,79235.0,0.01454085]
[1743976204594,0.252395,79241.0,79236.0,0.12290297]
[1743976204941,0.265023,79239.0,79236.0,0.12290297]
[1743976205351,0.265023,79239.0,79237.0,0.02341306]
[1743976205529,0.012619,79243.0,79238.0,0.12290297]
[1743976205734,0.012619,79243.0,79239.0,0.01454085]
[1743976205939,0.012619,79243.0,79241.0,0.01454085]
[1743976206104,0.012619,79243.0,79242.0,0.13744382]
[1743976206489,0.264993,79248.0,79243.0,0.01454085]
[1743976206690,0.264993,79248.0,79244.0,0.12290297]
[1743976206691,0.012618,79247.0,79244.0,0.12290297]
[1743976206891,0.012618,79251.0,79245.0,0.06404085]
[1743976207037,0.012618,79250.0,79247.0,0.01454085]
[1743976207223,0.012618,79250.0,79248.0,0.12290297]
[1743976207425,0.264984,79250.0,79248.0,0.12290297]
[1743976207826,0.012618,79249.0,79248.0,0.12290297]
[1743976208029,0.012618,79249.0,79248.0,0.13744382]
[1743976210348,0.014618,79249.0,79248.0,0.13744382]
[1743976210963,0.02776775,79249.0,79248.0,0.13744382]
[1743976215434,0.02576775,79249.0,79248.0,0.13744382]
[1743976216017,0.02776775,79249.0,79248.0,0.13744382]
[1743976216631,0.02576775,79249.0,79248.0,0.13744382]
[1743976216810,0.02776775,79249.0,79248.0,0.13744382]
[1743976217331,0.02576775,79249.0,79248.0,0.13744382]
[1743976219270,0.02776775,79249.0,79248.0,0.13744382]
[1743976219822,0.02576775,79249.0,79248.0,0.13744382]
[1743976220269,0.02976775,79249.0,79248.0,0.13744382]
[1743976220814,0.03176775,79249.0,79248.0,0.13744382]
[1743976221334,0.02976775,79249.0,79248.0,0.13744382]
[1743976221518,0.03176775,79249.0,79248.0,0.13744382]
[1743976224466,0.012619,79241.0,79240.0,0.03783043]
[1743976224669,0.012619,79241.0,79240.0,0.13744382]
[1743976224872,0.27821476,79241.0,79240.0,0.13744382]
[1743976225520,0.27821476,79241.0,79240.0,0.1607334]
[1743976226792,0.27921476,79241.0,79240.0,0.13744382]
[1743976227320,0.27921476,79241.0,79240.0,0.001]
[1743976229478,0.32621476,79241.0,79240.0,0.001]
[1743976230543,0.26502,79239.0,79238.0,0.02328958]
[1743976230697,0.26505,79231.0,79228.0,0.01454085]
[1743976230915,0.26505,79231.0,79230.0,0.01454085]
[1743976231124,0.26505,79231.0,79230.0,0.13744382]
[1743976231301,0.27823709,79231.0,79230.0,0.1607334]
[1743976231511,0.28458677,79231.0,79230.0,0.1607334]
[1743976233515,0.01953677,79231.0,79230.0,0.1607334]
[1743976233722,0.265038,79234.0,79230.0,0.1607334]
[1743976233946,0.265038,79234.0,79232.0,0.01454085]
[1743976234156,0.265038,79234.0,79233.0,0.12290297]
[1743976234553,0.265038,79234.0,79233.0,0.14619255]
[1743976235022,0.24831499,79234.0,79233.0,0.14619255]
[1743976235487,0.24831499,79234.0,79233.0,0.14719255]
[1743976236774,0.26193499,79234.0,79233.0,0.14719255]
[1743976240928,0.28147176,79234.0,79233.0,0.14719255]
[1743976243185,0.28147176,79234.0,79233.0,0.02428958]
[1743976244789,0.28147176,79234.0,79233.0,0.001]
[1743976247624,0.252429,79230.0,79226.0,0.01454085]
[1743976247821,0.252429,79230.0,79228.0,0.01454085]
[1743976248023,0.01951475,79229.0,79228.0,0.01454085]
[1743976248268,0.01951475,79229.0,79228.0,0.13744382]
[1743976248820,0.01951475,79229.0,79228.0,0.1607334]
[1743976249869,0.02151475,79229.0,79228.0,0.1607334]
[1743976250050,0.03413575,79229.0,79228.0,0.1607334]
[1743976255298,0.03413575,79229.0,79228.0,0.14619255]
[1743976257846,0.03413575,79229.0,79228.0,0.02328958]
[1743976257847,0.03529119,79229.0,79228.0,0.02328958]
[1743976258252,0.03729119,79229.0,79228.0,0.02328958]
[1743976258704,0.01951475,79229.0,79228.0,0.02328958]
[1743976259003,0.01951475,79229.0,79228.0,0.1733544]
[1743976259359,0.00315533,79234.0,79231.0,0.252425]
[1743976259703,0.00315533,79234.0,79231.0,0.37532697]
[1743976259944,0.00315533,79234.0,79232.0,0.02328958]
[1743976260356,0.25557333,79234.0,79233.0,0.02328958]
[1743976260566,0.252418,79234.0,79233.0,0.02328958]
[1743976260928,0.265038,79234.0,79233.0,0.02328958]
[1743976261922,0.266038,79234.0,79233.0,0.02328958]
[1743976262352,0.269038,79234.0,79233.0,0.02328958]
[1743976263892,0.01662,79234.0,79233.0,0.02328958]
[1743976264050,0.00715538,79234.0,79233.0,0.02328958]
[1743976264255,0.01977538,79234.0,79233.0,0.02328958]
[1743976266985,0.01677538,79234.0,79233.0,0.02328958]
[1743976267214,0.00315538,79234.0,79233.0,0.02328958]
[1743976267376,0.00715538,79234.0,79233.0,0.02328958]
[1743976267789,0.00315538,79234.0,79233.0,0.02328958]
[1743976268122,0.00815538,79234.0,79233.0,0.06242945]
[1743976268909,0.00815538,79234.0,79233.0,0.03913987]
[1743976269923,0.00815538,79234.0,79233.0,0.02350977]
[1743976270120,0.00515538,79234.0,79233.0,0.02350977]
[1743976270322,0.00615538,79234.0,79233.0,0.06264964]
[1743976270502,0.02077538,79234.0,79233.0,0.06264964]
[1743976270911,0.03726229,79234.0,79233.0,0.06264964]
[1743976271311,0.04126229,79234.0,79233.0,0.06264964]
[1743976272944,0.04126229,79234.0,79233.0,0.02350977]
[1743976273288,0.02864229,79234.0,79233.0,0.02350977]
[1743976273491,0.02864229,79234.0,79232.0,0.0391726]
[1743976273727,0.02864229,79234.0,79233.0,0.0391726]
[1743976273935,0.02864229,79234.0,79231.0,0.252426]
[1743976274138,0.02548691,79234.0,79233.0,0.012621]
[1743976274308,0.02348691,79234.0,79233.0,0.13552397]
[1743976274513,0.01948691,79234.0,79233.0,0.17468548]
[1743976274721,0.004,79234.0,79233.0,0.18922633]
[1743976274944,0.02350151,79234.0,79233.0,0.18922633]
[1743976275148,0.004,79234.0,79233.0,0.18922633]
[1743976275303,0.006,79234.0,79233.0,0.18922633]
[1743976275708,0.02550151,79234.0,79233.0,0.18922633]
[1743976276378,0.02250151,79234.0,79233.0,0.18922633]
[1743976276584,0.02250151,79234.0,79233.0,0.23772633]
[1743976276720,0.02025126,79234.0,79233.0,0.87714233]
[1743976276920,0.254339,79259.0,79250.0,0.0485]
[1743976277125,0.26709108,79259.0,79252.0,0.252357]
[1743976277327,0.01354272,79258.0,79253.0,0.37525697]
[1743976277533,0.00315444,79257.0,79254.0,0.25235]
[1743976277752,0.00315444,79257.0,79254.0,0.264967]
[1743976278216,0.01354272,79256.0,79254.0,0.264967]
[1743976278433,0.00315442,79258.0,79253.0,0.38787297]
[1743976278628,0.01354272,79257.0,79253.0,0.12290297]
[1743976278863,0.00315444,79256.0,79253.0,0.12290297]
[1743976279313,0.01354272,79255.0,79254.0,0.264968]
[1743976279641,0.005,79257.0,79256.0,0.012617]
[1743976279846,0.02354272,79257.0,79256.0,0.012617]
[1743976280305,0.02454272,79257.0,79256.0,0.13551997]
[1743976280458,0.01354272,79257.0,79256.0,0.13551997]
[1743976280663,0.0052905,79259.0,79256.0,0.38786597]
[1743976280895,0.01954272,79257.0,79256.0,0.38786597]
[1743976281068,0.006,79257.0,79256.0,0.38786597]
[1743976281274,0.01954272,79257.0,79256.0,0.38786597]
[1743976281472,0.01954272,79257.0,79256.0,0.12290297]
[1743976281473,0.012,79257.0,79256.0,0.12290297]
[1743976281838,0.27188572,79257.0,79256.0,0.12290297]
[1743976282444,0.01954272,79257.0,79256.0,0.12290297]
[1743976282791,0.01354272,79257.0,79256.0,0.12290297]
[1743976283197,0.01854272,79257.0,79256.0,0.12290297]
[1743976283633,0.01954272,79257.0,79256.0,0.12290297]
[1743976283832,0.01354272,79257.0,79256.0,0.13551997]
[1743976284032,0.008,79257.0,79256.0,0.13551997]
[1743976284236,0.02167536,79257.0,79256.0,0.13551997]
[1743976284483,0.01667536,79257.0,79256.0,0.13551997]
[1743976284685,0.01867536,79257.0,79256.0,0.13551997]
[1743976286255,0.01367536,79257.0,79256.0,0.13551997]
[1743976286513,0.00529041,79259.0,79257.0,0.252343]
[1743976286813,0.00213608,79259.0,79257.0,0.252343]
[1743976287309,0.00213608,79259.0,79256.0,0.12290297]
[1743976287560,0.00529041,79259.0,79256.0,0.12290297]
[1743976287928,0.25762941,79259.0,79256.0,0.12290297]
[1743976288081,0.25647508,79259.0,79256.0,0.12290297]
[1743976288293,0.00413608,79259.0,79256.0,0.12290297]
[1743976288540,0.00729041,79259.0,79256.0,0.12290297]
[1743976288981,0.00413608,79259.0,79256.0,0.13551997]
[1743976289212,0.25234,79258.0,79256.0,0.12290297]
[1743976289342,0.00315433,79257.0,79256.0,0.12290297]
[1743976289941,0.00829041,79259.0,79256.0,0.13551997]
[1743976290096,0.00629041,79259.0,79258.0,0.264957]
[1743976290302,0.00313608,79259.0,79258.0,0.264957]
[1743976290512,0.00213608,79259.0,79258.0,0.264957]
[1743976291235,0.00813608,79259.0,79258.0,0.264957]
[1743976291592,0.00613608,79259.0,79256.0,0.38786397]
[1743976292284,0.25847308,79259.0,79256.0,0.12290297]
[1743976292615,0.00315433,79258.0,79256.0,0.12290297]
[1743976293338,0.00315433,79258.0,79256.0,0.38786397]
[1743976294152,0.00815433,79258.0,79256.0,0.38786397]
[1743976295254,0.00815433,79258.0,79256.0,0.13551997]
[1743976295453,0.00815433,79258.0,79256.0,0.12290297]
[1743976297505,0.00815433,79258.0,79256.0,0.37524697]
[1743976297921,0.00815433,79258.0,79256.0,0.12290297]
[1743976298549,0.01367536,79257.0,79256.0,0.12290297]
[1743976298925,0.01367536,79257.0,79256.0,0.13551997]
[1743976299064,0.01367536,79257.0,79256.0,0.12290297]
[1743976299422,0.01367536,79257.0,79256.0,0.13551997]
[1743976299842,0.01367536,79257.0,79256.0,0.12290297]
[1743976300258,0.01567536,79257.0,79256.0,0.12290297]
[1743976300527,0.01768357,79257.0,79256.0,0.12290297]
[1743976300733,0.01468357,79257.0,79256.0,0.12290297]
[1743976301080,0.01368357,79257.0,79256.0,0.12290297]
[1743976301274,0.004,79257.0,79256.0,0.12290297]
[1743976301471,0.01768357,79257.0,79256.0,0.12290297]
[1743976301763,0.01468357,79257.0,79256.0,0.12290297]
[1743976302136,0.01768357,79257.0,79256.0,0.12290297]
[1743976303322,0.01468357,79257.0,79256.0,0.12290297]
[1743976303737,0.01668357,79257.0,79256.0,0.12290297]
[1743976304131,0.01468357,79257.0,79256.0,0.12290297]
[1743976304310,0.01368357,79257.0,79256.0,0.12290297]
[1743976304740,0.001,79257.0,79256.0,0.12290297]
[1743976304940,0.01468357,79257.0,79256.0,0.12290297]
[1743976305154,0.004,79257.0,79256.0,0.12290297]
[1743976305358,0.01768357,79257.0,79256.0,0.12290297]
[1743976305522,0.004,79257.0,79256.0,0.13551997]
[1743976306059,0.01768357,79257.0,79256.0,0.13551997]
[1743976308611,0.01768357,79257.0,79256.0,0.18919671]
[1743976308964,0.004,79257.0,79256.0,0.18919671]
[1743976309573,0.001,79257.0,79256.0,0.18919671]
[1743976309886,0.00213608,79259.0,79257.0,0.26496]
[1743976310114,0.00213608,79259.0,79258.0,0.13744382]
[1743976310291,0.00213608,79259.0,79258.0,0.17661401]
[1743976311101,0.00513608,79259.0,79258.0,0.17661401]
[1743976311302,0.00713608,79259.0,79258.0,0.17661401]
[1743976311924,0.00713608,79259.0,79258.0,0.18923101]
[1743976312349,0.00413608,79259.0,79258.0,0.18923101]
[1743976312884,0.00813608,79259.0,79258.0,0.18923101]
[1743976313026,0.00613608,79259.0,79258.0,0.18923101]
[1743976313226,0.00213608,79259.0,79258.0,0.18923101]
[1743976313430,0.00413608,79259.0,79258.0,0.18923101]
[1743976315511,0.01783807,79259.0,79258.0,0.18923101]
[1743976315712,0.00413608,79259.0,79258.0,0.18923101]
[1743976316017,0.00213608,79259.0,79258.0,0.17661401]
[1743976316221,0.00413608,79259.0,79258.0,0.17661401]
[1743976316446,0.01783807,79259.0,79258.0,0.17661401]
[1743976316670,0.01583807,79259.0,79258.0,0.17661401]
[1743976316991,0.01883807,79259.0,79258.0,0.17661401]
[1743976317205,0.01883807,79259.0,79258.0,0.18923101]
[1743976317406,0.01583807,79259.0,79258.0,0.18923101]
[1743976317668,0.01583807,79259.0,79258.0,0.17661401]
[1743976317906,0.01683807,79259.0,79258.0,0.17661401]
[1743976318834,0.01983807,79259.0,79258.0,0.17661401]
[1743976319983,0.01983807,79259.0,79258.0,0.18923101]
[1743976320205,0.00613608,79259.0,79258.0,0.18923101]
[1743976320445,0.00613608,79259.0,79258.0,0.24019159]
[1743976321041,0.00213608,79259.0,79258.0,0.24019159]
[1743976321389,0.00213608,79259.0,79258.0,0.24119159]
[1743976321593,0.00213608,79259.0,79258.0,0.28869159]
[1743976321795,0.00213608,79259.0,79258.0,0.28743101]
[1743976322192,0.00313608,79259.0,79258.0,0.28743101]
[1743976322443,0.00313608,79259.0,79258.0,0.28643101]
[1743976322648,0.00213608,79259.0,79258.0,0.28643101]
[1743976322968,0.00313608,79259.0,79258.0,0.28643101]
[1743976323507,0.00213608,79259.0,79258.0,0.28743101]
[1743976323739,0.00213608,79259.0,79258.0,0.28643101]
[1743976323940,0.00213608,79259.0,79258.0,0.29043101]
[1743976324303,0.00213608,79259.0,79258.0,0.28643101]
[1743976325797,0.00213608,79259.0,79258.0,0.29043101]
[1743976326002,0.00213608,79259.0,79258.0,0.28643101]
[1743976326294,0.00213608,79259.0,79258.0,0.29043101]
[1743976326521,0.00213608,79259.0,79258.0,0.28643101]
[1743976326958,0.00213608,79259.0,79258.0,0.29043101]
[1743976328730,0.00213608,79259.0,79258.0,0.28643101]
[1743976329790,0.00213608,79259.0,79258.0,0.29043101]
[1743976330031,0.00213608,79259.0,79258.0,0.28643101]
[1743976330405,0.00213608,79259.0,79258.0,0.29043101]
[1743976330605,0.00213608,79259.0,79258.0,0.28643101]
[1743976332175,0.00213608,79259.0,79258.0,0.28943101]
[1743976332414,0.00213608,79259.0,79258.0,0.28643101]
[1743976332618,0.00213608,79259.0,79258.0,0.29043101]
[1743976332761,0.00213608,79259.0,79258.0,0.29243101]
[1743976333342,0.00213608,79259.0,79258.0,0.29043101]
[1743976333479,0.00213608,79259.0,79258.0,0.28843101]
[1743976333911,0.00213608,79259.0,79258.0,0.29043101]
[1743976334296,0.00213608,79259.0,79258.0,0.29243101]
[1743976335060,0.00213608,79259.0,79258.0,1.38279101]
[1743976335421,0.00213608,79259.0,79258.0,1.37879101]
[1743976335645,0.00213608,79259.0,79258.0,1.38279101]
[1743976342473,0.0001675,79261.0,79260.0,0.012616]
[1743976342675,0.0001675,79261.0,79260.0,0.18923001]
[1743976344124,0.0001675,79261.0,79260.0,0.17468916]
[1743976344327,0.0471675,79261.0,79260.0,0.16407316]
[1743976344624,0.0610777,79261.0,79260.0,0.16407316]
[1743976344824,0.0610777,79261.0,79260.0,0.16707316]
[1743976345002,0.0610777,79261.0,79260.0,0.18161401]
[1743976345203,0.0610777,79261.0,79260.0,0.17861401]
[1743976345411,0.0140777,79261.0,79260.0,0.17661401]
[1743976345606,0.0001675,79261.0,79260.0,0.17661401]
[1743976345930,0.3122135,79261.0,79260.0,0.16407316]
[1743976346236,0.3122135,79261.0,79260.0,0.16507316]
[1743976346237,0.3261237,79261.0,79260.0,0.16507316]
[1743976346458,0.3261237,79261.0,79260.0,0.17661401]
[1743976347511,0.3261237,79261.0,79260.0,0.13744382]
[1743976347714,0.0140777,79261.0,79260.0,0.40339382]